[Event "WYCC U16 Girls 2019"]
[Site "Mumbai"]
[Date "2019.10.12"]
[Round "11.5"]
[White "Hajiyeva, Laman"]
[Black "Salonika, Saina"]
[Result "1/2-1/2"]
[ECO "A43"]
[WhiteElo "2038"]
[BlackElo "2051"]
[Annotator "NA"]
[PlyCount "82"]
[EventDate "2019.10.02"]
[EventType "swiss"]
[EventCountry "IND"]
[SourceTitle "playchess.com"]
[Source "ChessBase"]
[SourceQuality "1"]
[TimeControl "5400+30"]

1. d4 {[%emt 0:00:00]} c5 {[%emt 0:00:00]} 2. d5 {[%emt 0:00:00]} e6 {[%emt 0:00:00]} 3. c4 {[%emt 0:00:20]} exd5 {[%emt 0:00:00]} 4. cxd5 {[%emt 0:00:05]} d6 {[%emt 0:00:00]} 5. Nc3 {[%emt 0:00:21]} g6 {[%emt 0:00:00]} 6. e4 {[%emt 0:01:53]} a6 {[%emt 0:01:05]} 7. a4 {[%emt 0:00:38]} Bg7 {[%emt 0:00:06]} 8. f4 {[%emt 0:02:25]} Ne7 {[%emt 0:01:13]} 9. Nf3 {[%emt 0:02:16]} Bg4 {[%emt 0:00:29]} 10. h3 {[%emt 0:01:56]} Bxf3 {[%emt 0:02:11]} 11. Qxf3 {[%emt 0:00:06]} f5 {[%emt 0:02:47]} 12. Bc4 {[%emt 0:10:47]} fxe4 {[%emt 0:17:31]} 13. Nxe4 {[%emt 0:00:40]} h6 {[%emt 0:03:35]} 14. Qg4 {[%emt 0:10:17]} Qd7 {[%emt 0:00:40]} 15. f5 {[%emt 0:03:38]} O-O {[%emt 0:21:47]} 16. f6 {[%emt 0:09:36]} Bxf6 {[%emt 0:00:24]} 17. Bxh6 {[%emt 0:00:50]} Bg7 {[%emt 0:01:11]} 18. Bxg7 {[%emt 0:06:05]} Kxg7 {[%emt 0:04:40]} 19. Ng5 {[%emt 0:01:40]} Qxg4 {[%emt 0:04:24]} 20. hxg4 {[%emt 0:00:07]} Rh8 {[%emt 0:00:53]} 21. Rf1 {[%emt 0:06:11]} Kg8 {[%emt 0:05:25]} 22. O-O-O {[%emt 0:05:37]} Nd7 {[%emt 0:05:58]} 23. Rde1 {[%emt 0:01:42]} Nb6 {[%emt 0:04:28]} 24. Ba2 {[%emt 0:01:46]} Rf8 {[%emt 0:00:35]} 25. a5 {[%emt 0:08:22]} Rxf1 {[%emt 0:05:54]} 26. Rxf1 {[%emt 0:00:08]} Nbc8 {[%emt 0:00:18]} 27. g3 {[%emt 0:10:11]} Rh2 {[%emt 0:02:21]} 28. Ne6 {[%emt 0:03:41]} Kh8 {[%emt 0:01:25]} 29. Nd8 {[%emt 0:03:37]} Rg2 {[%emt 0:00:20]} 30. Rf3 {[%emt 0:00:22]} Rg1+ {[%emt 0:00:47]} 31. Kc2 {[%emt 0:02:17]} Ra1 {[%emt 0:00:08]} 32. Ra3 {[%emt 0:01:38]} b5 {[%emt 0:01:39]} 33. axb6 {[%emt 0:01:23]} Nxb6 {[%emt 0:00:05]} 34. Nf7+ {[%emt 0:01:43]} Kg7 {[%emt 0:00:23]} 35. Nxd6 {[%emt 0:00:11]} Nbxd5 {[%emt 0:01:59]} 36. Bxd5 {[%emt 0:00:05]} Rxa3 {[%emt 0:00:04]} 37. bxa3 {[%emt 0:00:10]} Nxd5 {[%emt 0:00:06]} 38. Kd3 {[%emt 0:00:23]} Nb6 {[%emt 0:01:03]} 39. Ne4 {[%emt 0:02:18]} Kh6 {[%emt 0:03:56]} 40. g5+ {[%emt 0:03:06]} Kh5 {[%emt 0:00:39]} 41. Ke3 {[%emt 0:00:00]} Kg4 {[%emt 0:00:00]} 1/2-1/2

[Event "WYCC U16 Girls 2019"]
[Site "Mumbai"]
[Date "2019.10.12"]
[Round "11.6"]
[White "Loskutova, Viktoriya"]
[Black "Achaya Vijayan"]
[Result "1-0"]
[ECO "B33"]
[WhiteElo "2149"]
[BlackElo "1585"]
[Annotator "ChessBase"]
[PlyCount "111"]
[EventDate "2019.10.02"]
[EventType "swiss"]
[EventCountry "IND"]
[SourceTitle "playchess.com"]
[Source "ChessBase"]
[SourceQuality "1"]
[TimeControl "5400+30"]

1. e4 {[%emt 0:00:00]} c5 {[%emt 0:00:00]} 2. Nf3 {[%emt 0:00:00]} Nc6 {[%emt 0:00:00]} 3. d4 {[%emt 0:00:00]} cxd4 {[%emt 0:00:00]} 4. Nxd4 {[%emt 0:00:00]} Nf6 {[%emt 0:00:00]} 5. Nc3 {[%emt 0:00:00]} e5 {[%emt 0:00:09]} 6. Ndb5 {[%emt 0:00:00]} d6 {[%emt 0:00:05]} 7. Bg5 {[%emt 0:00:00]} a6 {[%emt 0:00:04]} 8. Na3 {[%emt 0:00:04]} b5 {[%emt 0:00:03]} 9. Bxf6 {[%emt 0:00:13]} gxf6 {[%emt 0:00:06]} 10. Nd5 {[%emt 0:00:04]} f5 {[%emt 0:00:18]} 11. Bd3 {[%emt 0:00:08]} Be6 {[%emt 0:00:08]} 12. O-O {[%emt 0:00:14]} Bg7 {[%emt 0:00:18]} 13. Qh5 {[%emt 0:00:19]} f4 {[%emt 0:00:25]} 14. c4 {[%emt 0:00:15]} bxc4 {[%emt 0:07:49]} 15. Bxc4 {[%emt 0:01:16]} O-O {[%emt 0:03:39]} 16. Rac1 {[%emt 0:01:25]} Kh8 {[%emt 0:08:30]} 17. Rfd1 {[%emt 0:25:48]} Rg8 {[%emt 0:06:14]} 18. Nc3 {[%emt 0:35:36]} Bf8 {[%emt 0:08:26]} 19. Bxe6 {[%emt 0:08:13]} fxe6 {[%emt 0:00:58]} 20. Ne2 {[%emt 0:01:32]} Rc8 {[%emt 0:07:50]} 21. Nc4 {[%emt 0:06:45]} Be7 {[%emt 0:06:40]} 22. Rc3 {[%emt 0:06:44]} Rg5 {[%emt 0:04:49]} 23. Qh3 {[%emt 0:00:31]} Qf8 {[%emt 0:07:21]} 24. Nb6 {[%emt 0:04:30]} Rc7 {[%emt 0:02:25]} 25. Rdc1 {[%emt 0:00:29]} Nd4 {[%emt 0:05:33]} 26. Nxd4 {[%emt 0:00:49]} Rxc3 {[%emt 0:00:22]} 27. bxc3 {[%emt 0:04:06]} exd4 {[%emt 0:00:20]} 28. cxd4 {[%emt 0:00:05]} Bd8 {[%emt 0:03:44]} 29. Nc4 {[%emt 0:00:58]} f3 {[%emt 0:03:46]} 30. g3 {[%emt 0:01:37]} Qf4 {[%emt 0:02:33]} 31. Re1 {[%emt 0:00:20]} Rg6 {[%emt 0:04:06]} 32. Re3 {[%emt 0:01:42]} Rh6 {[%emt 0:00:32]} 33. gxf4 {[%emt 0:00:36]} Rxh3 {[%emt 0:00:08]} 34. Nxd6 {[%emt 0:00:20]} Bb6 {[%emt 0:00:24]} 35. Nf7+ {[%emt 0:00:17]} Kg7 {[%emt 0:00:44]} 36. Ng5 {[%emt 0:00:07]} Rh4 {[%emt 0:00:31]} 37. Nxe6+ {[%emt 0:01:32]} Kf6 {[%emt 0:00:20]} 38. Ng5 {[%emt 0:01:37]} Bxd4 {[%emt 0:02:49]} 39. Rxf3 {[%emt 0:00:12]} h6 {[%emt 0:00:38]} 40. Nh3 {[%emt 0:00:13]} Rh5 {[%emt 0:00:21]} 41. e5+ {[%emt 0:00:32]} Ke6 {[%emt 0:00:51]} 42. Kg2 {[%emt 0:00:32]} Rf5 {[%emt 0:00:27]} 43. Ra3 {[%emt 0:00:16]} Kd5 {[%emt 0:00:45]} 44. Rxa6 {[%emt 0:00:13]} h5 {[%emt 0:00:09]} 45. Kf3 {[%emt 0:00:44]} Rf8 {[%emt 0:00:42]} 46. Rd6+ {[%emt 0:00:40]} Kc4 {[%emt 0:00:04]} 47. Ke4 {[%emt 0:00:05]} Bc5 {[%emt 0:00:10]} 48. Rh6 {[%emt 0:01:04]} Ra8 {[%emt 0:00:19]} 49. Rxh5 {[%emt 0:00:13]} Rxa2 {[%emt 0:00:05]} 50. f5 {[%emt 0:00:00]} Re2+ {[%emt 0:00:00]} 51. Kf4 {[%emt 0:00:00]} Bd4 {[%emt 0:00:00]} 52. f6 {[%emt 0:00:00]} Kd5 {[%emt 0:00:00]} 53. f7 {[%emt 0:00:00]} Bc5 {[%emt 0:00:00]} 54. e6+ {[%emt 0:00:00]} Kc6 {[%emt 0:00:00]} 55. Rxc5+ {[%emt 0:00:00]} Kxc5 {[%emt 0:00:00]} 56. f8=Q+ {[%emt 0:00:00] Kd6 Qf6} 1-0

[Event "WYCC U16 Girls 2019"]
[Site "Mumbai"]
[Date "2019.10.12"]
[Round "11.7"]
[White "Mehendi Sil"]
[Black "Mrudul Dehankar"]
[Result "0-1"]
[ECO "A45"]
[WhiteElo "1812"]
[BlackElo "2227"]
[Annotator "ChessBase"]
[PlyCount "96"]
[EventDate "2019.10.02"]
[EventType "swiss"]
[EventCountry "IND"]
[SourceTitle "playchess.com"]
[Source "ChessBase"]
[SourceQuality "1"]
[TimeControl "5400+30"]

1. d4 {[%emt 0:00:00]} Nf6 {[%emt 0:00:00]} 2. Bf4 {[%emt 0:00:00]} b6 {[%emt 0:01:20]} 3. Nf3 {[%emt 0:01:57]} e6 {[%emt 0:00:25]} 4. c3 {[%emt 0:02:14]} Be7 {[%emt 0:00:58]} 5. e3 {[%emt 0:02:09]} Bb7 {[%emt 0:01:00]} 6. Bd3 {[%emt 0:00:46]} d6 {[%emt 0:02:48]} 7. Qe2 {[%emt 0:04:30]} c5 {[%emt 0:14:34]} 8. Nbd2 {[%emt 0:06:38]} Nbd7 {[%emt 0:08:11]} 9. Nc4 {[%emt 0:08:12]} Qc7 {[%emt 0:06:46]} 10. h3 {[%emt 0:11:24]} cxd4 {[%emt 0:05:51]} 11. cxd4 {[%emt 0:05:08]} Nd5 {[%emt 0:03:52]} 12. Bg3 {[%emt 0:10:05]} Nb4 {[%emt 0:07:29]} 13. O-O {[%emt 0:05:57]} Nxd3 {[%emt 0:06:51]} 14. Qxd3 {[%emt 0:00:47]} Nf6 {[%emt 0:05:42]} 15. Rac1 {[%emt 0:12:12]} Qd7 {[%emt 0:02:16]} 16. Nfd2 {[%emt 0:02:39]} O-O {[%emt 0:02:20]} 17. Rfe1 {[%emt 0:03:26]} Rfc8 {[%emt 0:04:56]} 18. b3 {[%emt 0:03:37]} Ba6 {[%emt 0:09:44]} 19. Qb1 {[%emt 0:01:44]} b5 {[%emt 0:02:08]} 20. Nb2 {[%emt 0:01:58]} Nd5 {[%emt 0:01:41]} 21. Rxc8+ {[%emt 0:03:38]} Rxc8 {[%emt 0:00:46]} 22. Nd1 {[%emt 0:02:46]} Qc7 {[%emt 0:09:18]} 23. e4 {[%emt 0:04:26]} Nb4 {[%emt 0:01:11]} 24. Ne3 {[%emt 0:00:55]} Qc3 {[%emt 0:00:41]} 25. Nf3 {[%emt 0:01:29]} Bb7 {[%emt 0:00:58]} 26. Nd1 {[%emt 0:02:11]} Qc1 {[%emt 0:00:32]} 27. Qxc1 {[%emt 0:00:56]} Rxc1 {[%emt 0:00:03]} 28. Bf4 {[%emt 0:00:41]} Rc8 {[%emt 0:01:02]} 29. Bd2 {[%emt 0:00:20]} Nc2 {[%emt 0:00:27]} 30. Rf1 {[%emt 0:00:54]} Bxe4 {[%emt 0:00:10]} 31. Ne3 {[%emt 0:00:30]} Bxf3 {[%emt 0:00:52]} 32. gxf3 {[%emt 0:00:26]} Nxd4 {[%emt 0:00:02]} 33. Kg2 {[%emt 0:00:14]} Ne2 {[%emt 0:00:51]} 34. Re1 {[%emt 0:00:41]} Nf4+ {[%emt 0:00:18]} 35. Kg3 {[%emt 0:00:10]} Nd3 {[%emt 0:00:09]} 36. Rd1 {[%emt 0:00:10]} d5 {[%emt 0:00:21]} 37. Ba5 {[%emt 0:01:15]} Bd6+ {[%emt 0:00:20]} 38. f4 {[%emt 0:00:52]} Nxf4 {[%emt 0:00:14]} 39. Be1 {[%emt 0:00:29]} d4 {[%emt 0:00:29]} 40. Ng2 {[%emt 0:00:27]} Nxg2+ {[%emt 0:01:12]} 41. Kxg2 {[%emt 0:00:09]} e5 {[%emt 0:00:13]} 42. Kf3 {[%emt 0:01:04]} f5 {[%emt 0:00:37]} 43. Bd2 {[%emt 0:00:29]} Rc2 {[%emt 0:00:33]} 44. a4 {[%emt 0:00:23]} bxa4 {[%emt 0:00:25]} 45. bxa4 {[%emt 0:00:10]} e4+ {[%emt 0:00:14]} 46. Kg2 {[%emt 0:00:14]} Bc5 {[%emt 0:00:37]} 47. Rc1 {[%emt 0:00:50]} Rxc1 {[%emt 0:00:06]} 48. Bxc1 {[%emt 0:00:05]} Bb4 {[%emt 0:00:02]} 0-1

[Event "WYCC U16 Girls 2019"]
[Site "Mumbai"]
[Date "2019.10.12"]
[Round "11.8"]
[White "Srdanovic, Jovana"]
[Black "Savitha Shri B"]
[Result "1/2-1/2"]
[ECO "D52"]
[WhiteElo "2100"]
[BlackElo "1916"]
[Annotator "ChessBase"]
[PlyCount "140"]
[EventDate "2019.10.02"]
[EventType "swiss"]
[EventCountry "IND"]
[SourceTitle "playchess.com"]
[Source "ChessBase"]
[SourceQuality "1"]
[TimeControl "5400+30"]

1. d4 d5 2. c4 Nf6 3. Nc3 e6 4. Nf3 c6 5. Bg5 Nbd7 6. e3 Bd6 7. Bd3 a5 8. O-O O-O 9. Qc2 h6 10. Bh4 Be7 11. Rfe1 dxc4 12. Bxc4 b5 13. Bd3 Bb7 14. Rac1 Rc8 15. Bxf6 Nxf6 16. Ne4 Nxe4 17. Bxe4 f5 18. Bd3 c5 19. dxc5 Rxc5 20. Qe2 Bxf3 21. gxf3 b4 22. Rxc5 Bxc5 23. Bc4 Rf6 24. Kh1 Qe8 25. Rg1 Qc6 26. b3 Kh8 27. Qd1 Bb6 28. Bf1 f4 29. Bg2 Qd5 30. Qe2 Qe5 31. e4 Qc5 32. Rd1 Rg6 33. Qd2 Qg5 34. Rg1 Kh7 35. h3 e5 36. Kh2 Bd4 37. Qc2 Qh4 38. Rf1 Rd6 39. Rd1 Qf6 40. Rc1 Qd8 41. Qc8 Qg5 42. Qc2 Qh4 43. Rd1 Qd8 44. Kh1 Qd7 45. Bf1 Rc6 46. Qd2 Qc8 47. Qe2 Rc3 48. Kg2 Qd8 49. Kh2 Qh4 50. Rd2 Rc1 51. Bg2 Rc6 52. Qb5 Rg6 53. Qe2 Qg5 54. Qf1 Qd8 55. Qe2 Rc6 56. Bf1 Rc3 57. Qd1 Qh4 58. Qe2 Qh5 59. Bg2 Qe8 60. Qa6 Rc5 61. Qe2 Qc6 62. Bf1 a4 63. bxa4 Qxa4 64. Qa6 Qe8 65. Bc4 Qc6 66. Qxc6 Rxc6 67. Bb3 Kg6 68. Kg2 Kh5 69. Rc2 Bc3 70. Bd5 Rd6 1/2-1/2

[Event "WYCC U16 Girls 2019"]
[Site "Mumbai"]
[Date "2019.10.12"]
[Round "11.9"]
[White "Ciolacu, Alessia-Mihaela"]
[Black "Al Maamari, Wafia Darwish"]
[Result "1-0"]
[ECO "A45"]
[WhiteElo "2095"]
[BlackElo "1673"]
[Annotator "NA"]
[PlyCount "63"]
[EventDate "2019.10.02"]
[EventType "swiss"]
[EventCountry "IND"]
[SourceTitle "playchess.com"]
[Source "ChessBase"]
[SourceQuality "1"]
[TimeControl "5400+30"]

1. d4 {[%emt 0:00:00]} Nf6 {[%emt 0:00:00]} 2. Bg5 {[%emt 0:00:00]} d5 {[%emt 0:00:00]} 3. e3 {[%emt 0:00:00]} c6 {[%emt 0:00:53]} 4. Bxf6 {[%emt 0:15:42]} exf6 {[%emt 0:01:06]} 5. c4 {[%emt 0:01:03]} Bb4+ {[%emt 0:02:40]} 6. Nc3 {[%emt 0:00:29]} Be6 {[%emt 0:02:41]} 7. Qb3 {[%emt 0:01:01]} Qa5 {[%emt 0:01:58]} 8. Bd3 {[%emt 0:08:13]} dxc4 {[%emt 0:01:02]} 9. Bxc4 {[%emt 0:00:11]} Bxc4 {[%emt 0:00:12]} 10. Qxc4 {[%emt 0:00:01]} Nd7 {[%emt 0:01:34]} 11. Nge2 {[%emt 0:03:11]} Nb6 {[%emt 0:01:06]} 12. Qd3 {[%emt 0:05:02]} O-O {[%emt 0:02:33]} 13. O-O {[%emt 0:01:14]} Bxc3 {[%emt 0:06:35]} 14. Nxc3 {[%emt 0:03:37]} Nd5 {[%emt 0:02:06]} 15. Ne4 {[%emt 0:01:21]} Qc7 {[%emt 0:02:32]} 16. Rac1 {[%emt 0:04:43]} f5 {[%emt 0:02:08]} 17. Ng5 {[%emt 0:02:03]} g6 {[%emt 0:01:19]} 18. Rc5 {[%emt 0:09:46]} Qe7 {[%emt 0:01:37]} 19. h4 {[%emt 0:04:45]} Rad8 {[%emt 0:04:30]} 20. g3 {[%emt 0:04:34]} Rfe8 {[%emt 0:06:41]} 21. Rfc1 {[%emt 0:02:06]} f6 {[%emt 0:02:01]} 22. Nh3 {[%emt 0:02:13]} Kg7 {[%emt 0:02:57]} 23. Kh2 {[%emt 0:12:15]} Qd6 {[%emt 0:06:26]} 24. Nf4 {[%emt 0:02:08]} Nxf4 {[%emt 0:00:51]} 25. gxf4 {[%emt 0:00:02]} Re4 {[%emt 0:00:49]} 26. b4 {[%emt 0:01:05]} Qe6 {[%emt 0:04:26]} 27. Ra5 {[%emt 0:04:20]} a6 {[%emt 0:01:55]} 28. Ra3 {[%emt 0:00:36]} Qd6 {[%emt 0:01:58]} 29. Rb3 {[%emt 0:00:29]} Rxf4 {[%emt 0:00:28]} 30. exf4 {[%emt 0:00:08]} Qxf4+ {[%emt 0:00:03]} 31. Qg3 {[%emt 0:00:07]} Qxc1 {[%emt 0:00:47]} 32. Qc7+ {[%emt 0:00:04]} 1-0

[Event "WYCC U16 Girls 2019"]
[Site "Mumbai"]
[Date "2019.10.12"]
[Round "11.10"]
[White "Jain Nityata"]
[Black "Lakshmi C"]
[Result "0-1"]
[ECO "B31"]
[WhiteElo "2029"]
[BlackElo "1859"]
[Annotator "NA"]
[PlyCount "80"]
[EventDate "2019.10.02"]
[EventType "swiss"]
[EventCountry "IND"]
[SourceTitle "playchess.com"]
[Source "ChessBase"]
[SourceQuality "1"]
[TimeControl "5400+30"]

1. e4 c5 2. Nf3 Nc6 3. Bb5 g6 4. Bxc6 dxc6 5. d3 Bg7 6. h3 Nf6 7. Nc3 Nd7 8. Be3 e5 9. Qd2 Qe7 10. Bh6 f6 11. Bxg7 Qxg7 12. O-O g5 13. Qe3 Rg8 14. Nd2 Qe7 15. Nb3 b6 16. a4 a5 17. Ne2 Nf8 18. c3 Be6 19. Nd2 Ng6 20. d4 g4 21. hxg4 Bxg4 22. Ng3 Nf4 23. dxc5 bxc5 24. Nf3 h5 25. Rad1 h4 26. Ne2 h3 27. g3 h2+ 28. Kh1 Nxe2 29. Qxe2 Qh7 30. Rd3 c4 31. Re3 Qh5 32. Rd1 Ke7 33. Kg2 Qh3+ 34. Kh1 Qh5 35. Kg2 Rh8 36. Kh1 Rad8 37. b3 Rxd1+ 38. Qxd1 Rd8 39. Qe2 Rd3 40. bxc4 Rxe3 0-1

[Event "WYCC U16 Girls 2019"]
[Site "Mumbai"]
[Date "2019.10.12"]
[Round "11.11"]
[White "Moncada Correa, Sara"]
[Black "Dahampriya, H K T Dewnethmie"]
[Result "0-1"]
[ECO "B90"]
[WhiteElo "1939"]
[BlackElo "1629"]
[Annotator "NA"]
[PlyCount "100"]
[EventDate "2019.10.02"]
[EventType "swiss"]
[EventCountry "IND"]
[SourceTitle "playchess.com"]
[Source "ChessBase"]
[SourceQuality "1"]
[TimeControl "5400+30"]

1. e4 c5 2. Nf3 d6 3. d4 cxd4 4. Nxd4 Nf6 5. Nc3 a6 6. Be3 e5 7. Nf3 Be6 8. Ng5 Bg4 9. Be2 Bxe2 10. Qxe2 h6 11. Nf3 Nc6 12. O-O-O Be7 13. Nh4 g6 14. g3 Rc8 15. f4 Qa5 16. Nf3 b5 17. Kb1 Nb4 18. a3 Nc6 19. Nd2 b4 20. Nc4 Qc7 21. Bb6 Qb8 22. Nd5 O-O 23. fxe5 Nxd5 24. exd5 Nxe5 25. Nxe5 dxe5 26. Qxa6 bxa3 27. b3 Qd6 28. c4 Qb4 29. Rd3 e4 30. Ba5 Qc5 31. b4 Qxc4 32. Qxc4 Rxc4 33. Rxa3 Bxb4 34. Bxb4 Rxb4+ 35. Kc2 Rd4 36. Ra5 Rd8 37. Re1 f5 38. Ra6 Kf7 39. Ra7+ Kf6 40. Ra6+ Kg5 41. g4 fxg4 42. Rf1 R8xd5 43. Rff6 Rd2+ 44. Kc1 Rxh2 45. Rxg6+ Kf4 46. Raf6+ Rf5 47. Rxh6 Rxh6 48. Rxh6 g3 49. Rh4+ Kf3 50. Rh3 Kf2 0-1

[Event "WYCC U16 Girls 2019"]
[Site "Mumbai"]
[Date "2019.10.12"]
[Round "11.12"]
[White "Nasybullina, Dayana"]
[Black "Lesbekova, Asel"]
[Result "0-1"]
[ECO "A89"]
[WhiteElo "1858"]
[BlackElo "2013"]
[Annotator "NA"]
[PlyCount "60"]
[EventDate "2019.10.02"]
[EventType "swiss"]
[EventCountry "IND"]
[SourceTitle "playchess.com"]
[Source "ChessBase"]
[SourceQuality "1"]
[TimeControl "5400+30"]

1. c4 {[%emt 0:00:00]} f5 {[%emt 0:00:00]} 2. d4 {[%emt 0:02:26]} d6 {[%emt 0:00:28]} 3. Nf3 {[%emt 0:00:50]} Nf6 {[%emt 0:00:56]} 4. Nc3 {[%emt 0:00:44]} g6 {[%emt 0:01:30]} 5. g3 {[%emt 0:02:21]} Bg7 {[%emt 0:00:23]} 6. Bg2 {[%emt 0:00:22]} O-O {[%emt 0:00:31]} 7. O-O {[%emt 0:00:19]} Nc6 {[%emt 0:01:21]} 8. d5 {[%emt 0:14:08]} Ne5 {[%emt 0:00:43]} 9. Nxe5 {[%emt 0:10:33]} dxe5 {[%emt 0:00:22]} 10. e4 {[%emt 0:05:51]} f4 {[%emt 0:01:09]} 11. gxf4 {[%emt 0:01:15]} exf4 {[%emt 0:00:08]} 12. Bxf4 {[%emt 0:10:25]} Nxe4 {[%emt 0:00:28]} 13. Qc1 {[%emt 0:08:34]} Nxc3 {[%emt 0:04:06]} 14. bxc3 {[%emt 0:00:06]} e6 {[%emt 0:07:49]} 15. Qe3 {[%emt 0:15:38]} exd5 {[%emt 0:12:00]} 16. Bxd5+ {[%emt 0:01:33]} Kh8 {[%emt 0:00:33]} 17. Be5 {[%emt 0:02:42]} c6 {[%emt 0:03:11]} 18. Bxg7+ {[%emt 0:01:24]} Kxg7 {[%emt 0:00:03]} 19. Qd4+ {[%emt 0:06:28]} Qf6 {[%emt 0:00:56]} 20. Be4 {[%emt 0:00:54]} Be6 {[%emt 0:02:27]} 21. Rfd1 {[%emt 0:08:48]} Rfd8 {[%emt 0:05:52]} 22. Qc5 {[%emt 0:02:30]} a6 {[%emt 0:02:54]} 23. Rab1 {[%emt 0:01:59]} Rxd1+ {[%emt 0:02:31]} 24. Rxd1 {[%emt 0:00:05]} Rd8 {[%emt 0:00:18]} 25. Rd4 {[%emt 0:01:31]} Kh6 {[%emt 0:02:04]} 26. a3 {[%emt 0:00:24]} Re8 {[%emt 0:03:08]} 27. f3 {[%emt 0:01:04]} Bh3 {[%emt 0:07:11]} 28. Kf2 {[%emt 0:00:32]} Qf4 {[%emt 0:03:03]} 29. Qb6 {[%emt 0:00:30]} Re5 {[%emt 0:02:55]} 30. Qc7 {[%emt 0:00:31]} Qxh2+ {[%emt 0:00:20]} 0-1